fUST/lending_fUST_20250806
["ID","MTS","AMOUNT","RATE_DAILY","PERIOD"]
[377487014,1754427061185,-472.25382233,0.00029041,2]
[377487015,1754427061194,-460.0,0.00029041,2]
[377487016,1754427061203,-460.0,0.00029041,2]
[377487017,1754427061213,-465.94527768,0.00029041,2]
[377487018,1754427061223,-460.0,0.00029041,2]
[377487019,1754427061232,-460.0,0.00029041,2]
[377487020,1754427061241,-460.0,0.00029041,2]
[377487021,1754427061250,-460.0,0.00029041,2]
[377487022,1754427061260,-460.0,0.00029041,2]
[377487023,1754427061270,-1472.16,0.00029041,2]
[377487024,1754427061280,-460.0,0.00029041,2]
[377487025,1754427061290,-208.38750257,0.00029041,2]
[377487026,1754427061300,-460.0,0.00029041,2]
[377487027,1754427061310,-469.60345435,0.00029041,2]
[377487028,1754427061319,-460.0,0.00029041,2]
[377487029,1754427061328,-2484.66,0.00029041,2]
[377487030,1754427061338,-2393.83,0.00029041,2]
[377487031,1754427061347,-460.0,0.00029041,2]
[377487032,1754427061357,-460.0,0.00029041,2]
[377487033,1754427061366,-490.46472836,0.00029041,2]
[377487034,1754427061374,-460.0,0.00029041,2]
[377487035,1754427061386,-502.01,0.00029041,2]
[377487036,1754427061395,-460.0,0.00029041,2]
[377487037,1754427061404,-1077.28,0.00029041,2]
[377487038,1754427061414,-70513.24,0.00029041,2]
[377487039,1754427061424,-1431.97,0.00029041,2]
[377487040,1754427061434,-915.89,0.00029041,2]
[377487041,1754427061444,-1250.29,0.00029041,2]
[377487042,1754427061455,-460.0,0.00029041,2]
[377487043,1754427061466,-189.96150134,0.00029041,2]
[377487044,1754427061475,-460.0,0.00029041,2]
[377487045,1754427061484,-460.0,0.00029041,2]
[377487046,1754427061494,-606.84,0.00029041,2]
[377487047,1754427061503,-460.0,0.00029041,2]
[377487048,1754427061513,-460.0,0.00029041,2]
[377487049,1754427061523,-1028.3,0.00029041,2]
[377487050,1754427061533,-914.04,0.00029041,2]
[377487051,1754427061542,-841.56,0.00029041,2]
[377487052,1754427061554,-1593.91,0.00029041,2]
[377487053,1754427061565,-460.0,0.00029041,2]
[377487054,1754427061574,-460.0,0.00029041,2]
[377487055,1754427061584,-2254.97,0.00029041,2]
[377487056,1754427061596,-307.095709,0.00029041,7]
[377487057,1754427061608,-500.0,0.00029041,2]
[377487058,1754427061618,-307.095709,0.00029041,7]
[377487059,1754427061628,-460.0,0.00029041,2]
[377487060,1754427061638,-460.0,0.00029041,2]
[377487061,1754427061649,-464.06820011,0.00029041,2]
[377487062,1754427061659,-460.0,0.00029041,2]
[377487063,1754427061668,-1438.56,0.00029041,2]
[377487064,1754427061678,-460.0,0.00029041,2]
[377487065,1754427061688,-774.78,0.00029041,2]
[377487066,1754427061699,-1081.48,0.00029041,2]
[377487067,1754427061709,-216.35496516,0.00029041,2]
[377487068,1754427061719,-460.0,0.00029041,2]
[377487069,1754427061730,-1425.2,0.00029041,2]
[377487070,1754427061739,-868.91,0.00029041,2]
[377487071,1754427061749,-503.74,0.00029041,2]
[377487072,1754427061759,-500.0,0.00029041,2]
[377487073,1754427061768,-1264.81,0.00029041,2]
[377487074,1754427061778,-5004.65,0.00029041,2]
[377487075,1754427061787,-460.0,0.00029041,2]
[377487076,1754427061796,-460.0,0.00029041,2]
[377487077,1754427061806,-151.0,0.00029041,7]
[377487078,1754427061815,-5873.66,0.00029041,2]
[377487079,1754427061824,-460.0,0.00029041,2]
[377487080,1754427061834,-323.34260802,0.00029041,2]
[377487081,1754427061844,-460.0,0.00029041,2]
[377487082,1754427061853,-460.0,0.00029041,2]
[377487083,1754427061863,-1295.15,0.00029041,2]
[377487084,1754427061872,-460.0,0.00029041,2]
[377487085,1754427061881,-460.0,0.00029041,2]
[377487086,1754427061891,-1259.02,0.00029041,2]
[377487087,1754427061900,-513.53,0.00029041,2]
[377487088,1754427061910,-460.0,0.00029041,2]
[377487089,1754427061919,-460.0,0.00029041,2]
[377487090,1754427061932,-497.333361,0.00029041,7]
[377487091,1754427061942,-461.07784282,0.00029041,2]
[377487092,1754427061952,-460.0,0.00029041,2]
[377487093,1754427061962,-497.333361,0.00029041,7]
[377487094,1754427061974,-577.33608087,0.00029041,2]
[377487095,1754427061983,-460.0,0.00029041,2]
[377487096,1754427061994,-569.2,0.00029041,2]
[377487097,1754427062004,-2544.7,0.00029041,2]
[377487098,1754427062013,-1712.627473,0.00029041,7]
[377487099,1754427062023,-1712.627473,0.00029041,7]
[377487100,1754427062033,-555.40811804,0.00029041,2]
[377487101,1754427062042,-151.0,0.00029041,7]
[377487102,1754427062052,-460.0,0.00029041,2]
[377487103,1754427062062,-1659.54,0.00029041,2]
[377487104,1754427062072,-460.0,0.00029041,2]
[377487105,1754427062082,-751.14,0.00029041,2]
[377487106,1754427062091,-1847.96,0.00029041,2]
[377487107,1754427062101,-859.85,0.00029041,2]
[377487108,1754427062110,-460.0,0.00029041,2]
[377487109,1754427062120,-460.0,0.00029041,2]
[377487110,1754427062129,-6456.97,0.00029041,2]
[377487111,1754427062138,-478.49,0.00029041,2]
[377487112,1754427062147,-2913.77,0.00029041,2]
[377487113,1754427062157,-464.84,0.00029041,2]
[377487114,1754427062166,-460.0,0.00029041,2]
[377487115,1754427062175,-643.1,0.00029041,2]
[377487116,1754427062185,-822.24,0.00029041,2]
[377487117,1754427062194,-673.92,0.00029041,2]
[377487118,1754427062204,-460.0,0.00029041,2]
[377487119,1754427062281,-460.0,0.00029041,2]
[377487120,1754427062291,-460.0,0.00029041,2]
[377487121,1754427062300,-1205.26,0.00029041,2]
[377487122,1754427062309,-1335.72,0.00029041,2]
[377487123,1754427062318,-1686.93,0.00029041,2]
[377487124,1754427062327,-460.0,0.00029041,2]
[377487125,1754427062337,-460.0,0.00029041,2]
[377487126,1754427062346,-1894.52,0.00029041,2]
[377487127,1754427062355,-460.0,0.00029041,2]
[377487128,1754427062364,-655.64,0.00029041,2]
[377487129,1754427062373,-460.0,0.00029041,2]
[377487130,1754427062384,-460.0,0.00029041,2]
[377487131,1754427062393,-659.36,0.00029041,2]
[377487132,1754427062402,-460.0,0.00029041,2]
[377487133,1754427062411,-460.0,0.00029041,2]
[377487134,1754427062421,-973.04,0.00029041,2]
[377487135,1754427062431,-12655.02535889,0.0002905,7]
[377487136,1754427062440,-842.25606042,0.0002905,7]
[377487137,1754427062451,-160.0,0.0002905,7]
[377487138,1754427062460,-160.0,0.000291,7]
[377487139,1754427062469,-160.0,0.000291,7]
[377487140,1754427062480,-312.16666667,0.000291,7]
[377487141,1754427062490,-228.47,0.00029139,15]
[377487142,1754427062499,-2253.730278,0.00029148,2]
[377487143,1754427062508,-183.29688319,0.00029184,2]
[377487144,1754427062518,-1000.0,0.000292,6]
[377487145,1754427062527,-2313.0,0.00029228,2]
[377487146,1754427062537,-228.47,0.00029239,15]
[377487147,1754427062547,-360.0,0.00029306,2]
[377487148,1754427062560,-460.0,0.00029315,2]
[377487149,1754427062569,-518.68,0.00029315,2]
[377487150,1754427062579,-522.68,0.00029315,2]
[377487151,1754427062589,-460.0,0.00029315,2]
[377487152,1754427062599,-532.24,0.00029315,2]
[377487153,1754427062610,-460.0,0.00029315,2]
[377487154,1754427062619,-460.0,0.00029315,2]
[377487155,1754427062630,-1254.3,0.00029315,2]
[377487156,1754427062642,-197.86072933,0.00029315,2]
[377487157,1754427062652,-460.0,0.00029315,2]
[377487158,1754427062663,-460.0,0.00029315,2]
[377487159,1754427062673,-460.0,0.00029315,2]
[377487160,1754427062684,-649.75,0.00029315,2]
[377487161,1754427062695,-460.0,0.00029315,2]
[377487162,1754427062704,-460.0,0.00029315,2]
[377487163,1754427062715,-1403.94,0.00029315,2]
[377487164,1754427062726,-470.88260073,0.00029315,2]
[377487165,1754427062735,-460.0,0.00029315,2]
[377487166,1754427062745,-460.0,0.00029315,2]
[377487167,1754427062754,-156.7364319,0.00029315,2]
[377487168,1754427062765,-460.0,0.00029315,2]
[377487169,1754427062775,-811.93,0.00029315,2]
[377487170,1754427062784,-1775.82,0.00029315,2]
[377487171,1754427062793,-460.0,0.00029315,2]
[377487172,1754427062803,-317.80467481,0.00029315,2]
[377487173,1754427062816,-460.0,0.00029315,2]
[377487174,1754427062837,-460.0,0.00029315,2]
[377487175,1754427062853,-468.23,0.00029315,2]
[377487176,1754427062874,-460.0,0.00029315,2]
[377487177,1754427062894,-460.0,0.00029315,2]
[377487178,1754427062911,-460.0,0.00029315,2]
[377487179,1754427062928,-460.0,0.00029315,2]
[377487180,1754427062945,-460.0,0.00029315,2]
[377487181,1754427062961,-587.7216217,0.00029315,2]
[377487182,1754427062979,-460.0,0.00029315,2]
[377487183,1754427063000,-460.0,0.00029315,2]
[377487184,1754427063016,-460.0,0.00029315,2]
[377487185,1754427063030,-460.0,0.00029315,2]
[377487186,1754427063048,-460.0,0.00029315,2]
[377487187,1754427063064,-463.68114907,0.00029315,2]
[377487188,1754427063079,-472.53548039,0.00029315,2]
[377487189,1754427063093,-1472.16,0.00029315,2]
[377487190,1754427063108,-372.82788003,0.00029315,2]
[377487191,1754427063123,-156.226848,0.00029315,7]
[377487192,1754427063137,-460.0,0.00029315,2]
[377487193,1754427063152,-2484.66,0.00029315,2]
[377487194,1754427063167,-151.0,0.00029315,7]
[377487195,1754427063181,-2393.83,0.00029315,2]
[377487196,1754427063196,-460.0,0.00029315,2]
[377487197,1754427063210,-151.0,0.00029315,7]
[377487198,1754427063226,-608.5789419,0.00029315,2]
[377487199,1754427063241,-502.01,0.00029315,2]
[377487200,1754427063256,-460.0,0.00029315,2]
[377487201,1754427063270,-1077.28,0.00029315,2]
[377487202,1754427063285,-70513.24,0.00029315,2]
[377487203,1754427063299,-1431.97,0.00029315,2]
[377487204,1754427063313,-915.89,0.00029315,2]
[377487205,1754427063327,-1250.29,0.00029315,2]
[377487206,1754427063342,-460.0,0.00029315,2]
[377487207,1754427063355,-460.0,0.00029315,2]
[377487208,1754427063369,-460.0,0.00029315,2]
[377487209,1754427063384,-606.84,0.00029315,2]
[377487210,1754427063400,-475.27677854,0.00029315,2]
[377487211,1754427063414,-460.0,0.00029315,2]
[377487212,1754427063428,-1028.3,0.00029315,2]
[377487213,1754427063443,-914.04,0.00029315,2]
[377487214,1754427063457,-841.56,0.00029315,2]
[377487215,1754427063472,-1593.91,0.00029315,2]
[377487216,1754427063488,-460.0,0.00029315,2]
[377487217,1754427063503,-460.0,0.00029315,2]
[377487218,1754427063518,-2254.97,0.00029315,2]
[377487219,1754427063533,-500.0,0.00029315,2]
[377487220,1754427063549,-460.0,0.00029315,2]
[377487221,1754427063564,-460.0,0.00029315,2]
[377487222,1754427063578,-538.16046026,0.00029315,2]
[377487223,1754427063593,-1438.56,0.00029315,2]
[377487224,1754427063608,-460.0,0.00029315,2]
[377487225,1754427063623,-774.78,0.00029315,2]
[377487226,1754427063638,-151.0,0.00029315,7]
[377487227,1754427063653,-1081.48,0.00029315,2]
[377487228,1754427063668,-460.0,0.00029315,2]
[377487229,1754427063781,-1425.2,0.00029315,2]
[377487230,1754427063796,-868.91,0.00029315,2]
[377487231,1754427063806,-503.74,0.00029315,2]
[377487232,1754427063816,-500.0,0.00029315,2]
[377487233,1754427063825,-1264.81,0.00029315,2]
[377487234,1754427063835,-5004.65,0.00029315,2]
[377487235,1754427063844,-460.0,0.00029315,2]
[377487236,1754427063854,-460.0,0.00029315,2]
[377487237,1754427063863,-5873.66,0.00029315,2]
[377487238,1754427063873,-460.0,0.00029315,2]
[377487239,1754427063883,-460.0,0.00029315,2]
[377487240,1754427063892,-460.0,0.00029315,2]
[377487241,1754427063902,-1295.15,0.00029315,2]
[377487242,1754427063912,-460.0,0.00029315,2]
[377487243,1754427063921,-460.0,0.00029315,2]
[377487244,1754427063931,-1259.02,0.00029315,2]
[377487245,1754427063940,-513.53,0.00029315,2]
[377487246,1754427063950,-460.0,0.00029315,2]
[377487247,1754427063959,-460.0,0.00029315,2]
[377487248,1754427063968,-460.0,0.00029315,2]
[377487249,1754427063980,-460.0,0.00029315,2]
[377487250,1754427063989,-2544.7,0.00029315,2]
[377487251,1754427063999,-532.14197992,0.00029315,2]
[377487252,1754427064009,-460.0,0.00029315,2]
[377487253,1754427064019,-1659.54,0.00029315,2]
[377487254,1754427064028,-751.14,0.00029315,2]
[377487255,1754427064039,-859.85,0.00029315,2]
[377487256,1754427064049,-1847.96,0.00029315,2]
[377487257,1754427064059,-151.0,0.00029315,7]
[377487258,1754427064069,-460.0,0.00029315,2]
[377487259,1754427064079,-460.0,0.00029315,2]
[377487260,1754427064089,-478.49,0.00029315,2]
[377487261,1754427064098,-6456.97,0.00029315,2]
[377487262,1754427064108,-2913.77,0.00029315,2]
[377487263,1754427064118,-464.84,0.00029315,2]
[377487264,1754427064127,-460.0,0.00029315,2]
[377487265,1754427064137,-643.1,0.00029315,2]
[377487266,1754427064146,-822.24,0.00029315,2]
[377487267,1754427064156,-673.92,0.00029315,2]
[377487268,1754427064166,-460.0,0.00029315,2]
[377487269,1754427064175,-460.0,0.00029315,2]
[377487270,1754427064185,-460.0,0.00029315,2]
[377487271,1754427064195,-1205.26,0.00029315,2]
[377487272,1754427064204,-1686.93,0.00029315,2]
[377487273,1754427064219,-1335.72,0.00029315,2]
[377487274,1754427064232,-460.0,0.00029315,2]
[377487275,1754427064242,-460.0,0.00029315,2]
[377487276,1754427064252,-1894.52,0.00029315,2]
[377487277,1754427064262,-460.0,0.00029315,2]
[377487278,1754427064272,-655.64,0.00029315,2]
[377487279,1754427064281,-460.0,0.00029315,2]
[377487280,1754427064290,-411.52432776,0.00029315,2]
[377487281,1754427064299,-659.36,0.00029315,2]
[377487282,1754427064308,-460.0,0.00029315,2]
[377487283,1754427064318,-973.04,0.00029315,2]
[377487284,1754427064327,-228.47,0.00029339,15]
[377487285,1754427064336,-600.0,0.00029372,2]
[377487286,1754427064346,-364.67,0.00029372,2]
[377487287,1754427064355,-228.47,0.00029439,15]
[377487288,1754427064365,-228.47,0.00029539,15]
[377487289,1754427064374,-500.0,0.00029564,2]
[377487290,1754427064386,-428.51014532,0.00029564,5]
[377487291,1754427064396,-2500.0,0.00029564,5]
[377487292,1754427064406,-2500.0,0.00029564,5]
[377487293,1754427064416,-2143.90803113,0.00029564,2]
[377487294,1754427064426,-151.0,0.00029589,7]
[377487295,1754427064435,-151.0,0.00029589,7]
[377487296,1754427064445,-964.554338,0.00029589,7]
[377487297,1754427064454,-964.554338,0.00029589,7]
[377487298,1754427064464,-460.0,0.00029589,2]
[377487299,1754427064473,-224.505427,0.00029589,7]
[377487300,1754427064484,-224.505427,0.00029589,7]
[377487301,1754427064493,-518.68,0.00029589,2]
[377487302,1754427064503,-522.68,0.00029589,2]
[377487303,1754427064512,-460.0,0.00029589,2]
[377487304,1754427064521,-532.24,0.00029589,2]
[377487305,1754427064530,-460.0,0.00029589,2]
[377487306,1754427064540,-460.0,0.00029589,2]
[377487307,1754427064552,-1254.3,0.00029589,2]
[377487308,1754427064562,-548.79933557,0.00029589,2]
[377487309,1754427064573,-260.73283226,0.00029589,2]
[377487310,1754427064582,-649.75,0.00029589,2]
[377487311,1754427064591,-460.0,0.00029589,2]
[377487312,1754427064604,-460.0,0.00029589,2]
[377487313,1754427064613,-1403.94,0.00029589,2]
[377487314,1754427064623,-460.0,0.00029589,2]
[377487315,1754427064633,-460.0,0.00029589,2]
[377487316,1754427064642,-811.93,0.00029589,2]
[377487317,1754427064651,-1775.82,0.00029589,2]
[377487318,1754427064661,-460.0,0.00029589,2]
[377487319,1754427064671,-460.0,0.00029589,2]
[377487320,1754427064680,-460.0,0.00029589,2]
[377487321,1754427064689,-468.23,0.00029589,2]
[377487322,1754427064699,-460.0,0.00029589,2]
[377487323,1754427064709,-460.0,0.00029589,2]
[377487324,1754427064718,-210.64970632,0.00029589,2]
[377487325,1754427064729,-460.0,0.00029589,2]
[377487326,1754427064739,-151.0,0.00029589,7]
[377487327,1754427064747,-460.0,0.00029589,2]
[377487328,1754427064757,-460.0,0.00029589,2]
[377487329,1754427064766,-460.0,0.00029589,2]
[377487330,1754427064777,-460.0,0.00029589,2]
[377487331,1754427064786,-460.0,0.00029589,2]
[377487332,1754427064797,-1472.16,0.00029589,2]
[377487333,1754427064807,-460.0,0.00029589,2]
[377487334,1754427064816,-2484.66,0.00029589,2]
[377487335,1754427064826,-2393.83,0.00029589,2]
[377487336,1754427064837,-460.0,0.00029589,2]
[377487337,1754427064846,-502.01,0.00029589,2]
[377487338,1754427064856,-460.0,0.00029589,2]
[377487339,1754427064866,-1077.28,0.00029589,2]
[377487340,1754427064876,-70513.24,0.00029589,2]
[377487341,1754427064885,-1431.97,0.00029589,2]
[377487342,1754427064895,-915.89,0.00029589,2]
[377487343,1754427064904,-1250.29,0.00029589,2]
[377487344,1754427064916,-460.0,0.00029589,2]
[377487345,1754427064925,-460.0,0.00029589,2]
[377487346,1754427064935,-460.0,0.00029589,2]
[377487347,1754427064944,-606.84,0.00029589,2]
[377487348,1754427064954,-561.40315,0.00029589,2]
[377487349,1754427064964,-1028.3,0.00029589,2]
[377487350,1754427064973,-914.04,0.00029589,2]
[377487351,1754427064983,-841.56,0.00029589,2]
[377487352,1754427064993,-1593.91,0.00029589,2]
[377487353,1754427065002,-460.0,0.00029589,2]
[377487354,1754427065012,-2254.97,0.00029589,2]
[377487355,1754427065021,-460.0,0.00029589,2]
[377487356,1754427065030,-500.0,0.00029589,2]
[377487357,1754427065039,-460.0,0.00029589,2]
[377487358,1754427065049,-460.0,0.00029589,2]
[377487359,1754427065058,-1438.56,0.00029589,2]
[377487360,1754427065068,-460.0,0.00029589,2]
[377487361,1754427065148,-774.78,0.00029589,2]
[377487362,1754427065158,-1081.48,0.00029589,2]
[377487363,1754427065167,-158.487474,0.00029589,7]
[377487364,1754427065176,-158.487474,0.00029589,7]
[377487365,1754427065185,-460.0,0.00029589,2]
[377487366,1754427065195,-1425.2,0.00029589,2]
[377487367,1754427065204,-868.91,0.00029589,2]
[377487368,1754427065213,-503.74,0.00029589,2]
[377487369,1754427065222,-500.0,0.00029589,2]
[377487370,1754427065232,-1264.81,0.00029589,2]
[377487371,1754427065241,-5004.65,0.00029589,2]
[377487372,1754427065251,-460.0,0.00029589,2]
[377487373,1754427065260,-460.0,0.00029589,2]
[377487374,1754427065270,-5873.66,0.00029589,2]
[377487375,1754427065280,-460.0,0.00029589,2]
[377487376,1754427065289,-151.0,0.00029589,7]
[377487377,1754427065299,-460.0,0.00029589,2]
[377487378,1754427065307,-1295.15,0.00029589,2]
[377487379,1754427065316,-460.0,0.00029589,2]
[377487380,1754427065326,-460.0,0.00029589,2]
[377487381,1754427065336,-1259.02,0.00029589,2]
[377487382,1754427065346,-513.53,0.00029589,2]
[377487383,1754427065355,-460.0,0.00029589,2]
[377487384,1754427065364,-460.0,0.00029589,2]
[377487385,1754427065373,-497.333361,0.00029589,7]
[377487386,1754427065383,-460.0,0.00029589,2]
[377487387,1754427065394,-497.333361,0.00029589,7]
[377487388,1754427065404,-460.0,0.00029589,2]
[377487389,1754427065413,-2544.7,0.00029589,2]
[377487390,1754427065422,-1712.627473,0.00029589,7]
[377487391,1754427065431,-1712.627473,0.00029589,7]
[377487392,1754427065440,-151.0,0.00029589,7]
[377487393,1754427065449,-460.0,0.00029589,2]
[377487394,1754427065459,-1659.54,0.00029589,2]
[377487395,1754427065468,-859.85,0.00029589,2]
[377487396,1754427065478,-751.14,0.00029589,2]
[377487397,1754427065487,-1847.96,0.00029589,2]
[377487398,1754427065496,-460.0,0.00029589,2]
[377487399,1754427065505,-478.49,0.00029589,2]
[377487400,1754427065515,-6456.97,0.00029589,2]
[377487401,1754427065524,-464.84,0.00029589,2]
[377487402,1754427065533,-2913.77,0.00029589,2]
[377487403,1754427065542,-643.1,0.00029589,2]
[377487404,1754427065554,-822.24,0.00029589,2]
[377487405,1754427065563,-673.92,0.00029589,2]
[377487406,1754427065572,-460.0,0.00029589,2]
[377487407,1754427065583,-460.0,0.00029589,2]
[377487408,1754427065593,-460.0,0.00029589,2]
[377487409,1754427065603,-1205.26,0.00029589,2]
[377487410,1754427065612,-1335.72,0.00029589,2]
[377487411,1754427065622,-1686.93,0.00029589,2]
[377487412,1754427065631,-460.0,0.00029589,2]
[377487413,1754427065641,-460.0,0.00029589,2]
[377487414,1754427065650,-1894.52,0.00029589,2]
[377487415,1754427065659,-460.0,0.00029589,2]
[377487416,1754427065668,-655.64,0.00029589,2]
[377487417,1754427065678,-460.0,0.00029589,2]
[377487418,1754427065689,-659.36,0.00029589,2]
[377487419,1754427065698,-460.0,0.00029589,2]
[377487420,1754427065708,-973.04,0.00029589,2]
[377487421,1754427065718,-228.47,0.00029639,15]
[377487422,1754427065728,-152.26,0.00029658,15]
[377487423,1754427065738,-1000.0,0.000297,6]
[377487424,1754427065748,-241.14,0.00029716,15]
[377487425,1754427065757,-150.0,0.00029729,2]
[377487426,1754427065767,-228.47,0.00029739,15]
[377487427,1754427065776,-152.0,0.00029758,15]
[377487428,1754427065786,-152.26,0.00029758,15]
[377487429,1754427065796,-241.14,0.00029816,15]
[377487430,1754427065806,-162.11134969,0.00029819,2]
[377487431,1754427065816,-228.47,0.00029839,15]
[377487432,1754427065825,-460.0,0.00029854,2]
[377487433,1754427065834,-152.0,0.00029858,15]
[377487434,1754427065844,-152.26,0.00029858,15]
[377487435,1754427065853,-151.0,0.00029863,7]
[377487436,1754427065863,-151.0,0.00029863,7]
[377487437,1754427065872,-151.0,0.00029863,7]
[377487438,1754427065882,-151.0,0.00029863,7]
[377487439,1754427065891,-151.0,0.00029863,7]
[377487440,1754427065901,-151.0,0.00029863,7]
[377487441,1754427065910,-460.0,0.00029863,2]
[377487442,1754427065920,-518.68,0.00029863,2]
[377487443,1754427065929,-522.68,0.00029863,2]
[377487444,1754427065938,-460.0,0.00029863,2]
[377487445,1754427065949,-532.24,0.00029863,2]
[377487446,1754427065959,-460.0,0.00029863,2]
[377487447,1754427065968,-574.59933092,0.00029863,2]
[377487448,1754427065978,-1254.3,0.00029863,2]
[377487449,1754427065988,-649.75,0.00029863,2]
[377487450,1754427065997,-460.0,0.00029863,2]
[377487451,1754427066006,-1403.94,0.00029863,2]
[377487452,1754427066015,-460.0,0.00029863,2]
[377487453,1754427066024,-460.0,0.00029863,2]
[377487454,1754427066034,-811.93,0.00029863,2]
[377487455,1754427066043,-1775.82,0.00029863,2]
[377487456,1754427066053,-505.09,0.00029863,2]
[377487457,1754427066062,-568.27527087,0.00029863,2]
[377487458,1754427066071,-468.23,0.00029863,2]
[377487459,1754427066081,-478.29593608,0.00029863,2]
[377487460,1754427066090,-460.0,0.00029863,2]
[377487461,1754427066100,-460.0,0.00029863,2]
[377487462,1754427066109,-460.0,0.00029863,2]
[377487463,1754427066118,-460.0,0.00029863,2]
[377487464,1754427066128,-460.0,0.00029863,2]
[377487465,1754427066137,-460.0,0.00029863,2]
[377487466,1754427066146,-1472.16,0.00029863,2]
[377487467,1754427066155,-460.0,0.00029863,2]
[377487468,1754427066165,-2484.66,0.00029863,2]
[377487469,1754427066174,-2393.83,0.00029863,2]
[377487470,1754427066183,-460.0,0.00029863,2]
[377487471,1754427066192,-502.01,0.00029863,2]
[377487472,1754427066202,-460.0,0.00029863,2]
[377487473,1754427066211,-1077.28,0.00029863,2]
[377487474,1754427066221,-70513.24,0.00029863,2]
[377487475,1754427066231,-1431.97,0.00029863,2]
[377487476,1754427066240,-915.89,0.00029863,2]
[377487477,1754427066249,-1250.29,0.00029863,2]
[377487478,1754427066258,-460.0,0.00029863,2]
[377487479,1754427066268,-460.0,0.00029863,2]
[377487480,1754427066277,-460.0,0.00029863,2]
[377487481,1754427066286,-606.84,0.00029863,2]
[377487482,1754427066375,-1028.3,0.00029863,2]
[377487483,1754427066394,-914.04,0.00029863,2]
[377487484,1754427066404,-841.56,0.00029863,2]
[377487485,1754427066414,-1593.91,0.00029863,2]
[377487486,1754427066424,-460.0,0.00029863,2]
[377487487,1754427066433,-2254.97,0.00029863,2]
[377487488,1754427066443,-460.0,0.00029863,2]
[377487489,1754427066452,-500.0,0.00029863,2]
[377487490,1754427066461,-460.0,0.00029863,2]
[377487491,1754427066470,-460.0,0.00029863,2]
[377487492,1754427066479,-1438.56,0.00029863,2]
[377487493,1754427066489,-460.0,0.00029863,2]
[377487494,1754427066498,-774.78,0.00029863,2]
[377487495,1754427066507,-1081.48,0.00029863,2]
[377487496,1754427066516,-235.12865115,0.00029863,2]
[377487497,1754427066525,-1425.2,0.00029863,2]
[377487498,1754427066534,-868.91,0.00029863,2]
[377487499,1754427066543,-503.74,0.00029863,2]
[377487500,1754427066557,-500.0,0.00029863,2]
[377487501,1754427066566,-1264.81,0.00029863,2]
[377487502,1754427066575,-5004.65,0.00029863,2]
[377487503,1754427066585,-380.2494999,0.00029863,2]
[377487504,1754427066595,-460.0,0.00029863,2]
[377487505,1754427066604,-5873.66,0.00029863,2]
[377487506,1754427066613,-460.0,0.00029863,2]
[377487507,1754427066622,-460.0,0.00029863,2]
[377487508,1754427066632,-1295.15,0.00029863,2]
[377487509,1754427066642,-460.0,0.00029863,2]
[377487510,1754427066651,-1259.02,0.00029863,2]
[377487511,1754427066660,-513.53,0.00029863,2]
[377487512,1754427066671,-460.0,0.00029863,2]
[377487513,1754427066680,-460.0,0.00029863,2]